[Event "3rd President Cup-A 2024"]
[Site "Tashkent"]
[Date "2024.11.25"]
[Round "5.5"]
[White "Nikitenko, Mihail"]
[Black "Tabatabaei, M. Amin"]
[Result "1/2-1/2"]
[ECO "D35"]
[WhiteElo "2490"]
[BlackElo "2686"]
[Annotator "TA"]
[PlyCount "120"]
[EventDate "2024.11.22"]
[EventType "swiss"]
[EventCountry "UZB"]
[SourceTitle "playchess.com"]
[Source "ChessBase"]
[SourceQuality "1"]
[TimeControl "5400+30"]

{[%evp 51,120,-32,0,0,0,-68,-77,-97,-94,-163,-151,-195,-33,-25,-22,-13,-32,-17,-14,-24,0,0,0,0,0,0,0,-12,-12,-12,-12,-12,-12,-7,-8,-95,0,0,0,0,0,0,0,0,0,0,0,0,0,0,0,0,0,0,0,0,0,0,0,0,0,0,0,0,0,0,0,0,0,0,0]} 1. Nf3 {[%emt 0:00:03]} d5 {[%emt 0:05:43]} 2. d4 {[%emt 0:00:09]} Nf6 {[%emt 0:00:09]} 3. c4 {[%emt 0:00:11]} e6 {[%emt 0:00:07]} 4. Nc3 {[%emt 0:00:06]} Nbd7 {[%emt 0:01:19]} 5. Bf4 {[%emt 0:00:07]} Bb4 {[%emt 0:00:22]} 6. cxd5 {[%emt 0:00:52]} exd5 {[%emt 0:00:11]} 7. e3 {[%emt 0:00:09]} Ne4 {[%emt 0:00:19] D35: Queen's Gambit Declined: Exchange Variation.} 8. Qc2 {[%emt 0:00:06]} g5 {[%emt 0:01:13]} 9. Be5 {[%emt 0:00:05]} Nxe5 {[%emt 0:01:08]} 10. Nxe5 {[%emt 0:01:34]} c6 {[%emt 0:00:24]} 11. Bd3 {[%emt 0:02:35]} f6 {[%emt 0:00:10]} 12. Nf3 {[%emt 0:01:46]} Qe7 {[%emt 0:06:14]} 13. a3 {[%emt 0:04:02]} Bxc3+ {[%emt 0:03:48]} 14. bxc3 {[%emt 0:00:24]} Nd6 {[%emt 0:00:13]} 15. Nd2 {[%emt 0:00:20]} Be6 {[%emt 0:01:42]} 16. O-O {[%emt 0:02:42]} O-O-O {[%emt 0:04:20]} 17. a4 $146 {[%emt 0:04:05]} ({Predecessor:} 17. c4 dxc4 18. Nxc4 Bxc4 19. Bxc4 Nxc4 20. Qxc4 h5 21. Rfc1 Kb8 22. Rab1 Ka8 23. a4 {½-½ Wang,I (2342)-Stearman,J (2482) Las Vegas 1000 GM June GM-A 2024 (8)}) 17... h5 {[%emt 0:01:55]} 18. a5 {[%emt 0:00:40]} h4 {[%emt 0:04:40]} 19. e4 {[%emt 0:03:34]} h3 {[%emt 0:20:25]} 20. g3 {[%emt 0:00:29]} dxe4 {[%emt 0:02:19]} 21. Nxe4 {[%emt 0:00:16]} Nxe4 {[%emt 0:00:42]} 22. Bxe4 {[%emt 0:00:05]} Qd6 {[%emt 0:00:05]} 23. Rab1 {[%emt 0:06:14]} Rhe8 {[%emt 0:02:57]} 24. Rfe1 {[%emt 0:01:23]} Re7 {[%emt 0:02:21]} 25. c4 {[%emt 0:08:58]} Qxd4 {[%emt 0:11:08]} 26. a6 {[%emt 0:00:22]} Qc5 {[%emt 0:06:32]} (26... bxa6 $2 27. Qb3 (27. Bxc6 Qc5 $16) 27... Qd6 (27... Qxc4 28. Qb8+ Kd7 29. Rb7+ Ke8 30. Bg6+ Kf8 31. Qxd8+ Kg7 32. Qxe7+) (27... Bxc4 28. Bf5+) 28. Qa4 $18) (26... Qxc4 $2 27. Qxc4 Bxc4 28. Bf5+ Kb8 29. Rxe7 $18) 27. axb7+ {[%emt 0:03:40]} Kb8 {[%emt 0:00:01]} 28. Qc3 {[%emt 0:01:06]} (28. Bd3 $1 $11) 28... Bxc4 $15 {[%emt 0:03:27]} 29. Qxf6 {[%emt 0:04:59]} Rde8 $1 {[%emt 0:01:17]} 30. Red1 {[%emt 0:01:23] [#]} (30. Qxc6 Qxc6 31. f3 Rxe4 32. Rxe4 Rxe4 33. g4 Rxg4+ (33... Qc5+ 34. Kh1 Qf2 35. Rg1 Qxf3+ 36. Rg2 Qxg2#) 34. Kf2 Qc5+ 35. Ke1 Rg2 36. Kd1 Qg1#) (30. Qc3 $17) 30... Bb5 $1 $19 {[%emt 0:02:14]} 31. Bf5 {[%emt 0:04:17] [#]} Qe5 $2 {[%emt 0:04:54]} (31... Ba4 $1 $19 {[%cal Ra4d1]} 32. Rf1 Bc2 33. Bxc2 (33. Bxh3 $2 {too greedy.} Bxb1 34. Rxb1 Re1+ 35. Rxe1 Rxe1+ 36. Bf1 Qb5 $19) 33... Qd5) 32. Qxe5+ $1 $15 {[%emt 0:00:26]} (32. Qxg5 $2 {gets mated.} Qe1+ (32... Rxb7 $2 {perishes.} 33. Rd8+ Kc7 34. Rxe8 $18) 33. Rxe1 Rxe1+ 34. Rxe1 Rxe1#) 32... Rxe5 {[%emt 0:00:01]} 33. Bxh3 {[%emt 0:01:45]} Kxb7 {[%emt 0:00:04]} 34. Rdc1 {[%emt 0:00:41]} Kc7 {[%emt 0:01:44]} 35. Bg2 {[%emt 0:01:35]} R8e6 {[%emt 0:01:17]} 36. h4 $1 {[%emt 0:00:51]} Kb6 {[%emt 0:03:18]} 37. hxg5 {[%emt 0:02:29]} Rxg5 {[%emt 0:00:01]} 38. Rc3 {[%emt 0:02:16]} a5 {[%emt 0:00:09]} 39. Rbc1 {[%emt 0:01:11]} a4 {[%emt 0:02:27]} 40. f4 {[%emt 0:00:24]} Rg8 {[%emt 0:00:02]} 41. Kf2 {[%emt 0:01:11]} Re2+ {[%emt 0:01:04]} 42. Kf3 {[%emt 0:00:06]} Rb2 {[%emt 0:00:05]} 43. Bf1 {[%emt 0:01:51]} (43. g4 $11) 43... Rb3 {[%emt 0:02:58]} (43... Ra8 $17 {...a3 would now be deadly.} 44. Ra1 c5 45. Bxb5 Kxb5) 44. Rxb3 $1 $11 {[%emt 0:03:02]} axb3 {[%emt 0:00:05]} 45. Bxb5 {[%emt 0:00:25]} Kxb5 {[%emt 0:07:26]} 46. Rc3 {[%emt 0:01:23]} Kb4 {[%emt 0:00:00]} 47. Rxc6 {[%emt 0:00:06]} Rb8 {[%emt 0:00:00]} 48. Rc1 {[%emt 0:01:17]} b2 {[%emt 0:00:00]} 49. Rb1 {[%emt 0:00:14]} Kc3 {[%emt 0:00:00]} 50. Ke4 {[%emt 0:03:09]} Kc2 {[%emt 0:00:00]} 51. Rxb2+ {[%emt 0:01:40]} Rxb2 {[%emt 0:00:00]} 52. g4 {[%emt 0:01:32]} Rb4+ {[%emt 0:00:00]} 53. Ke5 {[%emt 0:00:05]} Kd3 {[%emt 0:00:00]} 54. g5 {[%emt 0:00:06]} Rb5+ {[%emt 0:00:00]} 55. Kf6 {[%emt 0:00:05]} Rb6+ {[%emt 0:00:34]} 56. Kf5 {[%emt 0:00:37]} Rb5+ {[%emt 0:00:07]} 57. Kf6 {[%emt 0:00:05]} Ke4 {[%emt 0:00:01]} 58. g6 {[%emt 0:00:06]} Rb6+ {[%emt 0:00:04]} 59. Kg5 {[%emt 0:00:09]} Rxg6+ {[%emt 0:01:33]} 60. Kxg6 {[%emt 0:00:03]} Kxf4 {[%emt 0:00:22]} 1/2-1/2

[Event "3rd President Cup-A 2024"]
[Site "Tashkent"]
[Date "2024.11.25"]
[Round "5.6"]
[White "Urazayev, Arystanbek"]
[Black "Yakubboev, Nodirbek"]
[Result "1/2-1/2"]
[ECO "B15"]
[WhiteElo "2480"]
[BlackElo "2668"]
[Annotator "TA"]
[PlyCount "66"]
[EventDate "2024.11.22"]
[EventType "swiss"]
[EventCountry "UZB"]
[SourceTitle "playchess.com"]
[Source "ChessBase"]
[SourceQuality "1"]
[TimeControl "5400+30"]

{[%evp 19,66,29,33,26,41,31,47,0,17,16,12,9,12,18,22,23,23,24,47,8,0,0,34,11,22,14,18,18,61,-16,-8,-36,0,0,0,0,0,0,0,0,0,0,0,0,0,0,0,0,2]} 1. e4 {[%emt 0:00:03]} c6 {[%emt 0:00:13]} 2. d4 {[%emt 0:00:42]} d5 {[%emt 0:00:06]} 3. Nd2 {[%emt 0:00:04]} dxe4 {[%emt 0:00:06]} 4. Nxe4 {[%emt 0:00:06]} Nf6 {[%emt 0:01:10]} 5. Nxf6+ {[%emt 0:00:08]} exf6 {[%emt 0:00:01]} 6. c3 {[%emt 0:01:06]} Bd6 {[%emt 0:00:21]} 7. Bd3 {[%emt 0:00:10]} O-O {[%emt 0:00:08]} 8. Ne2 {[%emt 0:00:22]} Qc7 {[%emt 0:03:20]} 9. Qc2 {[%emt 0:01:17]} h6 {[%emt 0:03:45]} 10. Be3 {[%emt 0:05:22]} Re8 {[%emt 0:00:22][%cal Ob8d7]} 11. h3 {[%emt 0:05:51]} Nd7 {[%emt 0:07:54]} 12. O-O {[%emt 0:03:59]} c5 {[%emt 0:04:28]} 13. dxc5 {[%emt 0:14:01] White is slightly better.} Nxc5 {[%emt 0:03:29]} 14. Bh7+ {[%emt 0:03:15]} Kh8 {[%emt 0:01:34]} 15. Rad1 {[%emt 0:03:56]} Be6 {[%emt 0:15:58]} 16. b4 {[%emt 0:06:19]} Nd7 {[%emt 0:12:40]} 17. Nd4 {[%emt 0:06:33]} Bc4 {[%emt 0:02:08] [#] Prevents Nb5. aiming for ...Bh2+.} 18. Bd3 {[%emt 0:05:25]} Nb6 {[%emt 0:13:02]} 19. Nf5 {[%emt 0:02:43] Nxd6 is the strong threat.} (19. Nb5 {seems wilder.} Bxb5 20. Bxb5 Rxe3 21. fxe3 Bxb4 22. Qe4) 19... Bxd3 {[%emt 0:01:14]} 20. Qxd3 {[%emt 0:03:35]} Be5 {[%emt 0:04:46]} 21. Bd4 {[%emt 0:05:29]} Bxd4 {[%emt 0:04:30]} 22. Qxd4 {[%emt 0:01:33]} Re5 {[%emt 0:00:09]} 23. Qg4 {[%emt 0:04:11][%csl Gf5][%cal Rg4g7] [#]} g6 {[%emt 0:02:12]} (23... Rg8 $6 24. Rd4 $16) 24. Nd6 {[%emt 0:09:14] White is more active.} (24. Nxh6 Kg7 (24... Qxc3 $2 25. Rc1 $18) (24... Rh5 25. c4 $11) 25. Qf4 f5 $11) (24. Ne3 $1 $14) 24... Nd5 $11 {[%emt 0:07:15][%cal Bb6d5,Bd5f4,Bf4d5][%mdl 32]} 25. Nc4 {[%emt 0:04:29]} Rg5 {[%emt 0:01:16]} (25... Rf5 $5 26. Qd4 Rf4 27. Qxd5 Rxc4 $15) 26. Qd4 {[%emt 0:00:02] The position is equal.} Nf4 {[%emt 0:01:18]} 27. Qxf6+ {[%emt 0:01:26]} Kg8 {[%emt 0:00:05]} 28. Nd6 $1 {[%emt 0:03:11] Really sharp!} Nd5 {[%emt 0:05:53]} (28... Nxh3+ $2 {perishes.} 29. Kh1 $18) 29. Qxf7+ {[%emt 0:03:44]} Qxf7 {[%emt 0:00:01]} 30. Nxf7 {[%emt 0:00:10]} Kxf7 {[%emt 0:00:03]} 31. f4 {[%emt 0:00:16]} Rh5 {[%emt 0:00:17][%cal Od5e3] Hoping for ...Ne3!} 32. g4 {[%emt 0:00:19]} Rxh3 {[%emt 0:00:06]} 33. Rxd5 {[%emt 0:00:37]} Re8 {[%emt 0:00:17] Weighted Error Value: White=0.10 (very precise) /Black=0.07 (flawless) .  Mistake:       	White=1     	---        Inaccurate:     	White=3     	Black=2      OK:         	White=9     	Black=10     Best:        	White=2     	Black=1      Strong:       	White=1     	---} 1/2-1/2

[Event "3rd President Cup-A 2024"]
[Site "Tashkent"]
[Date "2024.11.25"]
[Round "5.7"]
[White "Puranik, Abhimanyu"]
[Black "Mamedov, Edgar"]
[Result "1/2-1/2"]
[ECO "D45"]
[WhiteElo "2652"]
[BlackElo "2448"]
[Annotator "TA"]
[PlyCount "79"]
[EventDate "2024.11.22"]
[EventType "swiss"]
[EventCountry "UZB"]
[SourceTitle "playchess.com"]
[Source "ChessBase"]
[SourceQuality "1"]
[TimeControl "5400+30"]

{[%evp 21,79,7,3,0,0,0,0,0,0,0,0,0,3,7,3,6,5,9,0,0,0,4,15,16,36,0,0,0,0,0,0,0,0,0,0,-1,0,0,0,0,0,0,0,0,0,0,0,0,0,0,0,0,0,-8,0,0,0,0,0,0]} 1. c4 {[%emt 0:00:03]} e6 {[%emt 0:00:34]} 2. Nc3 {[%emt 0:00:21]} d5 {[%emt 0:00:08]} 3. d4 {[%emt 0:00:19]} Nf6 {[%emt 0:00:24]} 4. Nf3 {[%emt 0:00:46]} c6 {[%emt 0:01:02]} 5. e3 {[%emt 0:00:44]} Nbd7 {[%emt 0:00:06]} 6. Qc2 {[%emt 0:00:12]} Bd6 {[%emt 0:00:13]} 7. b3 {[%emt 0:01:21]} O-O {[%emt 0:00:43]} 8. Be2 {[%emt 0:00:09]} b6 {[%emt 0:02:26]} 9. Bb2 {[%emt 0:00:28]} Bb7 {[%emt 0:00:34]} 10. O-O {[%emt 0:00:07]} Qe7 {[%emt 0:01:36]} 11. a4 {[%emt 0:00:20]} a5 {[%emt 0:00:32]} 12. Rad1 {[%emt 0:01:02]} Rad8 {[%emt 0:07:43]} 13. e4 {[%emt 0:14:22]} dxe4 {[%emt 0:01:19]} 14. Nxe4 {[%emt 0:01:55]} Nxe4 {[%emt 0:01:17]} 15. Qxe4 {[%emt 0:00:03]} Nf6 {[%emt 0:20:21]} 16. Qh4 {[%emt 0:00:15]} c5 {[%emt 0:04:28]} 17. Bd3 {[%emt 0:17:33] [#] dxc5 is the strong threat.} Ne4 {[%emt 0:07:16]} 18. Qxe7 {[%emt 0:01:57]} Bxe7 {[%emt 0:00:10][%cal Bd6e7,Be7f6,Bf6d4][%mdl 32]} 19. Rfe1 {[%emt 0:00:02]} f5 {[%emt 0:09:59]} 20. Nd2 {[%emt 0:29:26]} Nxd2 {[%emt 0:02:58]} 21. Rxd2 {[%emt 0:00:16]} Bf6 {[%emt 0:04:06]} 22. Rxe6 {[%emt 0:00:11]} Bxd4 {[%emt 0:00:10]} 23. Bf1 {[%emt 0:00:12]} Rf6 {[%emt 0:07:54] The position is equal.} 24. Re7 {[%emt 0:00:56]} Be4 {[%emt 0:06:21]} 25. Bxd4 {[%emt 0:06:38]} Rxd4 {[%emt 0:00:08]} 26. Rxd4 {[%emt 0:02:47]} cxd4 $11 {[%emt 0:00:05][%mdl 4096] Endgame. KRB-KRB} 27. Rd7 {[%emt 0:01:23] Dodges Rd6} Bc2 {[%emt 0:00:27]} 28. c5 $1 {[%emt 0:02:20]} bxc5 {[%emt 0:05:32]} (28... Bxb3 {simplifies} 29. cxb6 Rxb6 30. Rxd4 Kf7) 29. Bc4+ {[%emt 0:00:04]} Kf8 {[%emt 0:00:02]} 30. Kf1 $1 {[%emt 0:00:07]} Rb6 {[%emt 0:01:31]} 31. Rd5 {[%emt 0:03:22]} g6 {[%emt 0:00:30]} 32. Rxc5 {[%emt 0:01:17]} Bxb3 {[%emt 0:00:07]} 33. Bxb3 {[%emt 0:00:15]} Rxb3 {[%emt 0:00:05]} 34. Rxa5 {[%emt 0:00:44] KR-KR} d3 {[%emt 0:01:20][%cal Rb3b1] [#]} 35. Re5 {[%emt 0:05:10]} Ra3 {[%emt 0:02:15]} 36. Ke1 {[%emt 0:00:24]} Rxa4 {[%emt 0:14:08] aiming for ...Ra1+.} 37. Re3 $1 {[%emt 0:00:21]} Ra1+ {[%emt 0:00:00]} 38. Kd2 {[%emt 0:01:56]} Ra2+ {[%emt 0:00:00]} 39. Ke1 $1 {[%emt 0:00:07]} Ra1+ {[%emt 0:00:00]} 40. Kd2 {[%emt 0:00:08] An even fight not without its subleties.   Weighted Error Value: White=0.02 (flawless) /Black=0.01 (flawless) .  Inaccurate:     	White=1     	---        OK:         	White=10    	Black=10     Best:        	White=2     	Black=1      Strong:       	White=4     	---} 1/2-1/2

[Event "3rd President Cup-A 2024"]
[Site "Tashkent"]
[Date "2024.11.25"]
[Round "5.8"]
[White "Neelash Saha"]
[Black "Gareyev, Timur"]
[Result "1-0"]
[ECO "D25"]
[WhiteElo "2458"]
[BlackElo "2552"]
[Annotator "TA"]
[PlyCount "91"]
[EventDate "2024.11.22"]
[EventType "swiss"]
[EventCountry "UZB"]
[SourceTitle "playchess.com"]
[Source "ChessBase"]
[SourceQuality "1"]
[TimeControl "5400+30"]

{[%evp 16,91,33,41,43,30,37,29,39,27,38,31,45,29,54,45,60,59,61,54,52,52,48,43,55,48,52,48,50,37,52,43,78,66,82,62,73,59,72,68,218,210,275,274,452,456,418,305,290,304,415,398,454,460,472,468,473,453,493,486,511,518,506,494,552,454,590,607,758,754,1062,956,1366,1248,2472,2451,29982,3187]} 1. d4 {[%emt 0:07:37]} Nf6 {[%emt 0:00:21]} 2. c4 {[%emt 0:00:49]} g6 {[%emt 0:00:08]} 3. Nc3 {[%emt 0:00:24]} d5 {[%emt 0:00:09]} 4. cxd5 {[%emt 0:00:40]} Nxd5 {[%emt 0:00:06]} 5. e4 {[%emt 0:00:04]} Nb6 {[%emt 0:00:20]} 6. Nf3 {[%emt 0:03:19]} Bg4 {[%emt 0:02:13]} 7. Be3 {[%emt 0:02:58]} Bg7 {[%emt 0:00:40]} 8. Be2 {[%emt 0:10:06]} O-O {[%emt 0:03:00]} 9. O-O {[%emt 0:05:05]} Nc6 {[%emt 0:17:18]} 10. e5 {[%emt 0:08:36]} Nb4 {[%emt 0:05:31]} 11. h3 {[%emt 0:01:30]} Bf5 {[%emt 0:10:38] White has an edge.} 12. Rc1 {[%emt 0:02:05]} c6 {[%emt 0:01:25]} 13. Qd2 {[%emt 0:05:04]} Qd7 {[%emt 0:16:13]} 14. Rfd1 {[%emt 0:13:09]} Rad8 {[%emt 0:01:45]} 15. Nh4 {[%emt 0:10:17]} Kh8 {[%emt 0:19:36]} 16. Nxf5 {[%emt 0:14:02]} gxf5 {[%emt 0:00:03] [#]} 17. Na4 $1 {[%emt 0:00:19]} Nxa4 {[%emt 0:01:27]} 18. Qxb4 {[%emt 0:00:05]} Nb6 {[%emt 0:00:05]} 19. Bf3 {[%emt 0:00:06]} Rg8 {[%emt 0:01:46]} 20. Rc5 {[%emt 0:02:45]} e6 {[%emt 0:06:01]} 21. Bg5 {[%emt 0:01:24]} Ra8 {[%emt 0:02:41]} 22. Qd2 {[%emt 0:00:47]} Qe8 {[%emt 0:00:35]} 23. Qf4 {[%emt 0:02:25]} Nd7 {[%emt 0:02:54]} 24. Rc2 {[%emt 0:03:09]} a5 {[%emt 0:01:43]} 25. Qh4 {[%emt 0:01:22]} a4 {[%emt 0:00:42]} 26. Kh1 {[%emt 0:01:03] White has more active pieces.} Ra5 {[%emt 0:02:49]} 27. g4 {[%emt 0:00:37]} c5 {[%emt 0:00:15] This move loses the game for Black.} ({Black should try} 27... Nf8 $14) 28. Bxb7 $18 {[%emt 0:01:13]} (28. gxf5 $6 exf5 29. dxc5 (29. Bxb7 cxd4 30. Qxd4 Nf8 $11) 29... Rxc5 30. Rxc5 (30. Qxa4 b5 $16) 30... Nxc5 $16) 28... Qb8 {[%emt 0:00:26]} 29. Bc6 {[%emt 0:00:04] A strong pair of Bishops.} Qa7 $2 {[%emt 0:03:05]} (29... Nf8 30. gxf5 (30. dxc5 Ng6 $16) (30. Rxc5 Rxc5 31. dxc5 Qxe5 $11) 30... exf5 31. dxc5 Ng6) 30. gxf5 {[%emt 0:01:38]} exf5 {[%emt 0:00:01]} 31. Bxd7 {[%emt 0:00:32]} Qxd7 {[%emt 0:00:18]} 32. d5 {[%emt 0:00:06] [#] Strongly threatening Bf6.} (32. Rxc5 $2 Rxc5 33. Rg1 Rc4 $19) 32... f4 {[%emt 0:00:21]} 33. Bxf4 {[%emt 0:03:40]} (33. Qxf4 Qxh3+ 34. Kg1 Rb5 $11) 33... c4 34. Qg4 {[%emt 0:00:00]} (34. Rxc4 Rxd5 35. Rg1 Rd1 36. Rxd1 Qxd1+ 37. Kh2 Qd5 38. Rxa4 Bxe5 39. Bxe5+ Qxe5+ 40. Qf4 Qg7 $11) 34... Qb7 {[%emt 0:00:54]} 35. Qf3 {[%emt 0:00:00]} (35. Rxc4 Rxd5 36. Kh2 Bh6 $14) 35... a3 {[%emt 0:00:33]} 36. bxa3 {[%emt 0:00:00]} Rc8 {[%emt 0:01:16]} 37. Kg2 {[%emt 0:02:00]} Qd7 38. Bg3 {[%emt 0:00:00]} Rac5 {[%emt 0:01:16]} 39. Rc3 {[%emt 0:00:00]} h6 {[%emt 0:00:43]} 40. Kh2 {[%emt 0:00:00]} Re8 {[%emt 0:00:15]} 41. Qe4 {[%emt 0:00:16]} f5 {[%emt 0:00:01]} 42. Qd4 {[%emt 0:00:18]} Qc7 {[%emt 0:01:02]} 43. f4 {[%emt 0:00:29]} Rb8 {[%emt 0:00:45]} 44. Bf2 {[%emt 0:00:26]} Qa5 {[%emt 0:00:30]} 45. Rg3 {[%emt 0:00:15] Threatening mate with Rxg7.} Rbb5 {[%emt 0:00:24]} 46. Rdg1 {[%emt 0:00:19] Weighted Error Value: White=0.11 (very precise) /Black=0.39.  Mistake:       	---       	Black=2      Inaccurate:     	---       	Black=3      OK:         	White=19    	Black=7      Best:        	White=1     	---} (46. Rxg7 $142 Qe1 47. Rxe1 Kxg7 48. e6+ (48. Qxc5 Rxc5 49. Bxc5 c3 50. e6 c2 51. e7 c1=Q 52. Bd4+ Kh7 53. Rxc1 h5 54. e8=Q Kh6 55. Qh8+ Kg6 56. Qg7#) (48. Rg1+ Kh7 49. e6 Rc7 50. Qf6 Rb8 51. Qg6+ Kh8 52. Qxh6+ Rh7 53. Bd4#) 48... Kh7 49. e7 (49. Qxc5 Rxc5 50. Bxc5 h5 51. e7 Kh6 52. e8=Q h4 53. Rg1 Kh7 54. Qh5#) 49... Rb8 50. Qf6 (50. Qxc5 h5 51. d6 Kh6 52. Qxf5 Re8 53. Re6+ Kg7 54. Qg6+ Kh8 55. Bd4#) 50... Rxd5 51. Qf7+ (51. e8=B Re5 52. Qg6+ Kh8 53. Qxh6+ Kg8 54. Rg1#) 51... Kh8 52. e8=Q+ Rxe8 53. Rxe8#) 1-0

[Event "3rd President Cup-A 2024"]
[Site "Tashkent"]
[Date "2024.11.25"]
[Round "5.9"]
[White "Bernadskiy, Vitaliy"]
[Black "Bharadia Yash"]
[Result "1-0"]
[ECO "C50"]
[WhiteElo "2543"]
[BlackElo "2385"]
[Annotator "TA"]
[PlyCount "79"]
[EventDate "2024.11.22"]
[EventType "swiss"]
[EventCountry "UZB"]
[SourceTitle "playchess.com"]
[Source "ChessBase"]
[SourceQuality "1"]
[TimeControl "5400+30"]

{[%evp 13,79,14,9,0,28,23,23,14,19,17,14,20,23,24,17,16,99,0,0,0,32,37,27,33,37,35,57,61,61,57,77,70,102,97,93,87,87,93,108,115,117,111,103,83,92,94,104,92,98,89,144,151,250,242,231,197,188,209,545,539,580,463,579,584,2172,2037,1910,1860]} 1. e4 {[%emt 0:00:02]} e5 {[%emt 0:00:43]} 2. Nf3 {[%emt 0:01:07]} Nc6 {[%emt 0:00:03]} 3. Bc4 {[%emt 0:00:50]} Nf6 {[%emt 0:00:07]} 4. d3 {[%emt 0:00:03]} Bc5 {[%emt 0:01:00]} 5. Nc3 {[%emt 0:02:12]} d6 {[%emt 0:01:48]} 6. Na4 {[%emt 0:01:16]} Bb6 {[%emt 0:04:40]} 7. Nxb6 {[%emt 0:00:42]} axb6 {[%emt 0:00:07]} 8. c3 {[%emt 0:00:06]} Na5 {[%emt 0:10:36] Strongly threatening ...Nxc4.} 9. Bb5+ {[%emt 0:00:11]} Bd7 {[%emt 0:00:17]} 10. Bxd7+ {[%emt 0:00:16] White has an edge.} Qxd7 {[%emt 0:01:32]} 11. O-O {[%emt 0:00:39]} O-O {[%emt 0:02:05]} 12. h3 {[%emt 1:29:06]} Rfe8 {[%emt 0:05:05]} 13. Nh4 {[%emt 0:00:30]} d5 {[%emt 0:07:22]} 14. Bg5 {[%emt 0:00:00] White wants to play Bxf6.} Qe6 {[%emt 0:05:24]} (14... dxe4 $11 {keeps the balance.} 15. Bxf6 exd3) 15. Qf3 {[%emt 0:00:00]} (15. f4 $16) 15... dxe4 $11 {[%emt 0:00:30]} 16. dxe4 {[%emt 0:00:00]} Nd7 {[%emt 0:00:26][%cal Bf6d7,Bd7f8,Bf8g6][%mdl 32]} (16... Nc4 $5) 17. Nf5 {[%emt 0:02:00]} h6 {[%emt 0:08:38]} 18. Be3 {[%emt 0:00:00]} Kh7 {[%emt 0:00:54]} 19. Qg4 {[%emt 0:00:00]} Rg8 {[%emt 0:06:52]} 20. Rad1 {[%emt 0:00:00][%cal Of5h6] Black must now prevent Nxh6!} Nf8 {[%emt 0:08:47]} 21. b3 {[%emt 0:00:00] Inhibits Nc4. White has more active pieces. The black rooks are passive.} Ng6 {[%emt 0:08:47]} 22. Rd3 {[%emt 0:00:00]} Rad8 {[%emt 0:06:00]} 23. Rfd1 {[%emt 0:00:00]} Rxd3 {[%emt 0:00:13]} 24. Rxd3 {[%emt 0:00:00]} Nc6 {[%emt 0:00:08]} 25. g3 {[%emt 0:00:00]} Rd8 {[%emt 0:04:31] [#]} 26. Rxd8 {[%emt 0:00:00]} Nxd8 {[%emt 0:00:04]} 27. h4 {[%emt 0:00:00] And now h5 would win.} Qf6 {[%emt 0:00:07]} 28. Qh5 {[%emt 0:00:00] aiming for Bg5.} Kg8 {[%emt 0:01:56]} 29. Qd1 {[%emt 0:00:00]} Nf8 {[%emt 0:00:15] Against Qd7} 30. a4 {[%emt 0:00:00]} Nc6 {[%emt 0:01:58]} 31. b4 {[%emt 0:00:00][%cal Bb3b4,Bb4a5][%mdl 32]} Kh7 {[%emt 0:06:16]} ({Black should play} 31... Ne6) 32. Qd5 {[%emt 0:00:00]} Nd8 {[%emt 0:05:24]} (32... Qe6 $16 {is a better defense.}) 33. a5 $18 {[%emt 0:00:00]} bxa5 {[%emt 0:01:38] Black is weak on the dark squares} 34. bxa5 {[%emt 0:00:00] Bc5 is the strong threat.} Nfe6 {[%emt 0:00:38]} 35. Qd7 {[%emt 0:00:00]} h5 $2 {[%emt 0:00:23]} (35... g5 36. hxg5 hxg5) 36. Ne7 {[%emt 0:00:00] White is clearly winning.} g6 {[%emt 0:00:28] [#]} 37. Bg5 $1 {[%emt 0:00:00][%mdl 512]} Qh8 {[%emt 0:02:00]} (37... Qg7 38. Nd5) 38. Nd5 {[%emt 0:00:00]} c6 {[%emt 0:00:31]} 39. Nf6+ {[%emt 0:00:00]} Kg7 {[%emt 0:00:02]} 40. Ne8+ {[%emt 0:00:00] Weighted Error Value: White=0.10 (very precise) /Black=0.30.  Mistake:       	White=1     	Black=4      Inaccurate:     	---       	Black=4      OK:         	White=16    	Black=8      Best:        	White=2     	Black=7} 1-0